fUSD/lending_fUSD_20260228
["ID","MTS","AMOUNT","RATE_DAILY","PERIOD"]
[406939411,1772308241428,-166.66,0.00016889,2]
[406939413,1772308241438,-500.0,0.00017,5]
[406939414,1772308241447,-1339.27019514,0.00017028,2]
[406939416,1772308241462,-1525.4143838,0.00017028,2]
[406939418,1772308241471,-700.0,0.00017188,3]
[406939420,1772308241481,-151.0,0.00017193,2]
[406939423,1772308241492,-151.0,0.00017193,2]
[406939424,1772308241501,-151.0,0.00017193,2]
[406939427,1772308241511,-151.0,0.00017193,2]
[406939429,1772308241520,-162.996,0.00017194,2]
[406939431,1772308241529,-1053.522,0.00017194,2]
[406939433,1772308241539,-1340.0,0.00017194,2]
[406939435,1772308241548,-639.821,0.00017194,2]
[406939437,1772308241557,-3499.0,0.00017194,2]
[406939438,1772308241567,-1277.0,0.00017194,2]
[406939441,1772308241576,-1211.0,0.00017194,2]
[406939442,1772308241585,-921.0,0.00017194,2]
[406939444,1772308241595,-2457.0,0.00017194,2]
[406939446,1772308241604,-4574.0,0.00017194,2]
[406939448,1772308241613,-5984.0,0.00017194,2]
[406939450,1772308241622,-1000.0,0.00017286,2]
[406939452,1772308241631,-1339.27019514,0.00017318,2]
[406939454,1772308241641,-1525.4143838,0.00017318,2]
[406939457,1772308241651,-500.0,0.0001732,2]
[406939459,1772308241660,-500.0,0.0001732,2]
[406939461,1772308241670,-500.0,0.0001732,2]
[406939463,1772308241679,-500.0,0.0001732,2]
[406939465,1772308241688,-151.0,0.0001732,2]
[406939467,1772308241698,-151.0,0.0001732,2]
[406939468,1772308241707,-151.0,0.0001732,2]
[406939470,1772308241717,-151.0,0.0001732,2]
[406939473,1772308241726,-500.0,0.0001732,2]
[406939474,1772308241735,-500.0,0.0001732,2]
[406939476,1772308241745,-500.0,0.0001732,2]
[406939478,1772308241754,-500.0,0.0001732,2]
[406939481,1772308241763,-500.0,0.0001732,2]
[406939482,1772308241773,-165.34371311,0.00017377,2]
[406939485,1772308241782,-1945.62859491,0.00017377,2]
[406939487,1772308241791,-158.45,0.00017385,2]
[406939488,1772308241800,-2730.86,0.00017388,2]
[406939491,1772308241810,-1069.585,0.00017475,2]
[406939493,1772308241819,-1736.5561596,0.00017598,2]
[406939495,1772308241828,-151.0,0.00017598,2]
[406939497,1772308241837,-151.0,0.00017598,2]
[406939499,1772308241847,-151.0,0.00017598,2]
[406939501,1772308241856,-151.0,0.00017598,2]
[406939503,1772308241865,-9702.4054379,0.00017601,2]
[406939505,1772308241874,-3673.1299279,0.00017601,2]
[406939507,1772308241884,-1339.27019514,0.00017609,2]
[406939509,1772308241893,-350.0,0.00017663,2]
[406939511,1772308241902,-269.0,0.00017664,2]
[406939513,1772308241912,-150.0,0.00017664,2]
[406939515,1772308241922,-326.0,0.0001768,2]
[406939517,1772308241934,-320.66798966,0.00017684,2]
[406939518,1772308241944,-11884.014155,0.00017712,2]
[406939520,1772308241953,-151.0,0.00017712,2]
[406939523,1772308241962,-151.0,0.00017712,2]
[406939525,1772308241971,-151.0,0.00017712,2]
[406939526,1772308241980,-800.0,0.00017726,7]
[406939528,1772308241990,-500.0,0.00017726,7]
[406939530,1772308241999,-1100.0,0.00017726,7]
[406939532,1772308242008,-350.0,0.00017797,2]
[406939534,1772308242018,-500.0,0.00017808,2]
[406939536,1772308242027,-500.0,0.00017808,2]
[406939538,1772308242037,-500.0,0.00017808,2]
[406939540,1772308242047,-500.0,0.00017808,2]
[406939543,1772308242056,-500.0,0.00017808,2]
[406939544,1772308242066,-500.0,0.00017808,2]
[406939546,1772308242076,-500.0,0.00017808,2]
[406939548,1772308242085,-500.0,0.00017808,2]
[406939551,1772308242095,-500.0,0.00017808,2]
[406939552,1772308242104,-500.0,0.00017808,2]
[406939554,1772308242114,-500.0,0.00017808,2]
[406939557,1772308242123,-482.39304815,0.00017808,2]
[406939558,1772308242133,-500.0,0.00017808,2]
[406939560,1772308242142,-500.0,0.00017808,2]
[406939562,1772308242152,-500.0,0.00017808,2]
[406939565,1772308242162,-500.0,0.00017808,2]
[406939566,1772308242171,-350.0,0.00017839,2]
[406939568,1772308242180,-151.0,0.00017847,2]
[406939570,1772308242189,-1000.0,0.00017868,2]
[406939572,1772308242199,-1000.0,0.00017868,2]
[406939575,1772308242209,-1000.0,0.00017868,2]
[406939577,1772308242218,-1000.0,0.00017868,2]
[406939579,1772308242228,-1000.0,0.00017868,2]
[406939581,1772308242238,-1000.0,0.00017868,2]
[406939583,1772308242247,-1000.0,0.00017868,2]
[406939584,1772308242256,-1000.0,0.00017868,2]
[406939587,1772308242266,-151.0,0.00017882,2]
[406939588,1772308242276,-252.729421,0.00017882,2]
[406939591,1772308242286,-151.0,0.00017882,2]
[406939593,1772308242295,-300.0,0.00017882,3]
[406939607,1772308242411,-300.0,0.00017882,3]
[406939610,1772308242443,-300.0,0.00017882,3]
[406939612,1772308242453,-300.0,0.00017882,3]
[406939614,1772308242463,-300.0,0.00017882,3]
[406939616,1772308242472,-168.0,0.0001789,2]
[406939618,1772308242482,-100000.0,0.000179,2]
[406939620,1772308242491,-10625.04010309,0.000179,3]
[406939622,1772308242501,-151.0,0.000179,2]
[406939624,1772308242511,-165.34371311,0.000179,2]
[406939626,1772308242520,-151.0,0.000179,2]
[406939628,1772308242529,-151.0,0.000179,2]
[406939630,1772308242539,-151.0,0.000179,2]
[406939632,1772308242548,-25000.0,0.000179,3]
[406939634,1772308242557,-1339.27019514,0.000179,2]
[406939636,1772308242566,-151.0,0.000179,2]
[406939638,1772308242575,-151.0,0.000179,2]
[406939640,1772308242586,-151.0,0.000179,2]
[406939642,1772308242594,-151.0,0.000179,2]
[406939644,1772308242604,-151.0,0.000179,2]
[406939646,1772308242613,-151.0,0.000179,2]
[406939648,1772308242622,-151.0,0.000179,2]
[406939650,1772308242631,-183.46260466,0.000179,2]
[406939651,1772308242640,-1945.62859491,0.000179,2]
[406939654,1772308242649,-2776.37218313,0.000179,2]
[406939655,1772308242658,-168.0,0.00017926,2]
[406939657,1772308242668,-43231.49553955,0.0001795,2]
[406939660,1772308242685,-2690.68394261,0.0001795,2]
[406939669,1772308242766,-28413.88688978,0.0001795,2]
[406939672,1772308242778,-25663.93362806,0.0001795,2]
[406939674,1772308242788,-151.0,0.0001795,2]
[406939676,1772308242797,-151.0,0.0001795,2]
[406939678,1772308242806,-168.0,0.00017951,2]
[406939680,1772308242816,-350.0,0.00017951,2]
[406939682,1772308242825,-350.0,0.00017963,2]
[406939684,1772308242835,-400.0,0.0001797,2]
[406939686,1772308242843,-190.56335456,0.0001799,2]
[406939688,1772308242852,-300.0,0.00017999,2]
[406939690,1772308242861,-55975.97802861,0.00018,2]
[406939692,1772308242873,-458.87313864,0.00018,2]
[406939695,1772308242892,-6472.45549387,0.00018,2]
[406939697,1772308242902,-430.49670968,0.00018,2]
[406939739,1772308243238,-429.27843614,0.000179,2]
[406939741,1772308243248,-13115.11867062,0.00018,2]
[406939746,1772308243291,-232655.61982808,0.00018,2]
[406939748,1772308243303,-266319.1512539,0.00018,2]
[406939751,1772308243314,-80490.51791808,0.00018,2]
[406939753,1772308243325,-116561.94654477,0.00018,2]
[406939756,1772308243345,-2146.96710097,0.00018,2]
[406939769,1772308243452,-1988.8604776,0.00018,2]
[406939771,1772308243463,-190503.94752961,0.00018,2]
[406940033,1772308246182,-657.92929977,0.00015279,2]
[406940034,1772308246197,-342.07070023,0.00015279,2]
[406940035,1772308246208,-481.92929977,0.00017609,2]
[406940036,1772308246293,-371.52533801,0.00017609,2]
[406940037,1772308246305,-671.95974602,0.00017609,2]
[406940038,1772308246315,-251.54077996,0.00018,2]
[406940039,1772308246331,-595.56076077,0.00018,2]
[406940047,1772308246557,-2498.7,0.00018,2]
[406940048,1772308246569,-601.72420443,0.00018,2]
[406940049,1772308246582,-461.614895,0.00018,2]
[406940050,1772308246593,-418.680849,0.00018,2]
[406940051,1772308246605,-770.5,0.00018,2]
[406940085,1772309371103,-580.37,7.713e-05,2]
[406940086,1772309371125,-250.0,7.879e-05,2]
[406940087,1772309371147,-580.37,8.045e-05,2]
[406940088,1772309371169,-202.94973096,8.377e-05,2]
[406940099,1772309431295,-377.42026904,8.377e-05,2]
[406940102,1772309431306,-10.18316826,8.484e-05,2]
[406940104,1772309431318,-184.81683174,8.484e-05,2]
[406940106,1772309431328,-559.91355518,8.709e-05,2]
[406940107,1772309431339,-20.45644482,8.709e-05,2]
[406940108,1772309431349,-374.54835025,9.003e-05,2]
[406940109,1772309431361,-125.45164975,9.003e-05,2]
[406940110,1772309431370,-580.37,9.042e-05,2]
[406940111,1772309431379,-280.07835025,9.374e-05,2]
[406940112,1772309431390,-300.29164975,9.374e-05,2]
[406940113,1772309431400,-385.70292429,9.566e-05,2]
[406940114,1772309431412,-392.55167891,9.566e-05,2]
[406940115,1772309431421,-325.02200372,9.694e-05,2]
[406940116,1772309431431,-2.05551879,9.706e-05,2]
[406940117,1772309431442,-578.31448121,9.706e-05,2]
[406940118,1772309431452,-1471.0,9.806e-05,2]
[406940119,1772309431461,-268.0,9.806e-05,2]
[406940121,1772309431471,-182.0,9.807e-05,2]
[406940123,1772309431480,-277.0,9.807e-05,2]
[406940125,1772309431489,-300.0,9.807e-05,2]
[406940126,1772309431498,-3597.90593635,9.808e-05,2]
[406940128,1772309431507,-204.0,9.825e-05,2]
[406940130,1772309431517,-580.37,0.00010038,2]
[406940132,1772309431526,-489.0,0.00010193,2]
[406940133,1772309431535,-161.0,0.00010214,2]
[406940134,1772309431544,-253.0,0.00010234,2]
[406940135,1772309431553,-351.0,0.00010254,2]
[406940136,1772309431562,-193.03578909,0.0001031,2]
[406940137,1772309431577,-127.63220057,0.0001031,2]
[406940139,1772309431586,-580.37,0.0001037,2]
[406940141,1772309431595,-12.22385852,0.00010483,2]
[406940143,1772309431606,-269.01162148,0.00010483,2]
[406940144,1772309431616,-1491.0,0.00010491,2]
[406940145,1772309431625,-838.0,0.00010512,2]
[406940146,1772309431634,-875.0,0.00010533,2]
[406940147,1772309431643,-538.0,0.00010554,2]
[406940148,1772309431652,-580.37,0.00010702,2]
[406940149,1772309431661,-420.0,0.00010787,2]
[406940150,1772309431669,-580.37,0.00011034,2]
[406940151,1772309431678,-580.37,0.00011367,2]
[406940152,1772309431687,-929.05,0.00011507,2]
[406940153,1772309431698,-65.90064654,0.0001164,2]
[406940154,1772309431709,-92.55935346,0.0001164,2]
[406940155,1772309431718,-205.32,0.0001166,2]
[406940156,1772309431727,-580.37,0.00011699,2]
[406940157,1772309431737,-300.0,0.00011866,2]
[406940158,1772309431746,-580.37,0.00012031,2]
[406940159,1772309431755,-500.0,0.0001207,2]
[406940160,1772309431764,-364.27076525,0.0001207,2]
[406940161,1772309431775,-135.72923475,0.0001207,2]
[406940162,1772309431785,-500.0,0.0001207,2]
[406940163,1772309431794,-200.0,0.00012351,2]
[406940164,1772309431803,-796.43602246,0.00012354,2]
[406940165,1772309431812,-580.37,0.00012363,2]
[406940166,1772309431821,-580.37,0.00012695,2]
[406940167,1772309431830,-158.46,0.00012804,2]
[406940168,1772309431839,-150.0,0.00012841,2]
[406940169,1772309431849,-580.37,0.00013027,2]
[406940170,1772309431858,-530.95734831,0.00013099,2]
[406940171,1772309431867,-500.0,0.00013099,2]
[406940172,1772309431877,-580.37,0.00013359,2]
[406940173,1772309431886,-359.25206103,0.00013373,2]
[406940174,1772309431895,-265.47867415,0.00013574,2]
[406940175,1772309431904,-580.37,0.00013692,2]
[406940176,1772309431913,-392.8380898,0.00013699,2]
[406940177,1772309431924,-987.95536,0.00013699,2]
[406940178,1772309431936,-869.66570832,0.00013699,2]
[406940179,1772309431949,-510.0,0.00013699,2]
[406940180,1772309431959,-784.78084188,0.00013699,2]
[406940181,1772309431969,-865.21915812,0.00013926,2]
[406940182,1772309431980,-443.0379931,0.00013926,2]
[406940183,1772309431991,-595.51496788,0.00013926,2]
[406940184,1772309432002,-1027.11678612,0.00013926,2]
[406940185,1772309432013,-416.00858968,0.00013926,2]
[406940186,1772309432022,-158.46,0.00013968,2]
[406940187,1772309432031,-163.94141032,0.00013974,7]
[406940188,1772309432043,-2406.02426268,0.00013974,7]
[406940189,1772309432052,-4736.780455,0.00013974,7]
[406940190,1772309432062,-580.37,0.00014024,2]
[406940191,1772309432071,-200.29460036,0.00014042,2]
[406940192,1772309432081,-527.0,0.0001411,2]
[406940193,1772309432090,-2052.03,0.00014189,2]
[406940194,1772309432099,-3415.86,0.0001489,2]
[406940195,1772309432108,-151.0,0.00014897,2]
[406940196,1772309432117,-2052.03,0.00014898,2]
[406940197,1772309432126,-85267.28260925,0.000149,2]
[406940202,1772309437480,-425.8971333,0.000149,2]
[406940203,1772309437492,-1490.28584203,0.000149,2]
[406940204,1772309437503,-1135.0112237,0.000149,2]
[406940205,1772309437516,-636.50932092,0.000149,2]
[406940206,1772309437527,-18275.13788187,0.000149,2]
[406940215,1772309439541,-215993.57468893,0.000149,2]
[406940216,1772309439551,-151.0,0.00014976,2]
[406940217,1772309439561,-5000.0,0.00014979,2]
[406940218,1772309439571,-2500.0,0.00014979,2]
[406940220,1772309439581,-1989.45402679,0.00015,7]
[406940221,1772309439592,-2644.99055029,0.00015,14]
[406940222,1772309439602,-1283.713,0.00015,2]
[406940223,1772309439611,-250.0,0.00015,2]
[406940224,1772309439621,-3075.18260847,0.00015032,2]
[406940225,1772309439630,-2943.61474018,0.00015032,2]
[406940226,1772309439640,-494.6361199,0.00015032,2]
[406940227,1772309439650,-267.35,0.00015068,2]
[406940228,1772309439659,-3415.86,0.00015069,2]
[406940229,1772309439669,-179.10040374,0.00015069,2]
[406940230,1772309439678,-166.90991613,0.0001507,2]
[406940231,1772309439687,-1486.79133623,0.0001507,2]
[406940232,1772309439697,-151.0,0.0001507,2]
[406940233,1772309439711,-151.0,0.0001507,2]
[406940234,1772309439720,-151.0,0.0001507,2]
[406940235,1772309439729,-151.0,0.0001507,2]
[406940236,1772309439739,-151.0,0.0001507,2]
[406940237,1772309439748,-151.0,0.0001507,2]
[406940238,1772309439758,-151.0,0.0001507,2]
[406940239,1772309439767,-151.0,0.0001507,2]
[406940240,1772309439777,-151.0,0.0001507,2]
[406940241,1772309439786,-151.0,0.0001507,2]
[406940242,1772309439796,-151.0,0.0001507,2]
[406940243,1772309439810,-151.0,0.0001507,2]
[406940244,1772309439825,-1000.0,0.00015078,2]
[406940245,1772309439834,-255.43375404,0.00015078,2]
[406940246,1772309439844,-200.0,0.00015078,2]
[406940247,1772309439853,-500.0,0.00015078,2]
[406940248,1772309439862,-500.0,0.00015078,2]
[406940249,1772309439872,-500.0,0.00015078,2]
[406940250,1772309439881,-500.0,0.00015078,2]
[406940251,1772309439891,-500.0,0.00015078,2]
[406940252,1772309439900,-409.05008186,0.00015078,2]
[406940253,1772309439909,-500.0,0.00015078,2]
[406940254,1772309439918,-373.89946168,0.00015078,2]
[406940255,1772309439928,-500.0,0.00015078,2]
[406940256,1772309439937,-500.0,0.00015078,2]
[406940257,1772309439947,-600.91073958,0.00015078,2]
[406940258,1772309439964,-222.11925389,0.00015078,2]
[406940259,1772309439974,-500.0,0.00015078,2]
[406940260,1772309439983,-500.0,0.00015078,2]
[406940261,1772309439992,-500.0,0.00015078,2]
[406940262,1772309440002,-500.0,0.00015078,2]
[406940263,1772309440011,-500.0,0.00015078,2]
[406940264,1772309440021,-500.0,0.00015078,2]
[406940266,1772309440030,-617100.5471241,0.00015079,2]
[406940267,1772309440041,-4386.02600372,0.00015079,2]
[406940268,1772309440056,-609.8663025,0.00015079,2]
[406940269,1772309440074,-170704.00637878,0.00015079,2]
[406940279,1772309442445,-4377.27067227,0.00015079,2]
[406940280,1772309442458,-12370.57708032,0.00015079,2]
[406940281,1772309442500,-736.00102635,0.00015079,2]
[406940282,1772309442511,-1329879.99999984,0.00015079,2]
[406940283,1772309442555,-892.32,0.00015079,2]
[406940284,1772309442663,-801.0,0.00015079,2]
[406940285,1772309442674,-1134.47,0.00015079,2]
[406940298,1772309445305,-8222.50011104,0.00015079,2]
[406940299,1772309445674,-6749.0,0.00015079,2]
[406940385,1772310631524,-292.91733824,9.002e-05,2]
[406940387,1772310631585,-907.08266176,9.002e-05,2]
[406940390,1772310631597,-300.0,9.002e-05,2]
[406940392,1772310631610,-500.0,9.003e-05,2]
[406940393,1772310631621,-500.0,9.003e-05,2]
[406940394,1772310631633,-500.0,9.003e-05,2]
[406940395,1772310631644,-518.95667799,9.003e-05,2]
[406940396,1772310631656,-500.0,9.003e-05,2]
[406940397,1772310631667,-300.0,9.176e-05,2]
[406940398,1772310631679,-208.7289862,9.176e-05,2]
[406940399,1772310631690,-651.784734,9.413e-05,2]
[406940400,1772310631701,-1680.0,9.902e-05,2]
[406940401,1772310631713,-255.36160863,9.902e-05,2]
[406940402,1772310631725,-264.45413062,9.902e-05,2]
[406940403,1772310631739,-250.0,9.902e-05,2]
[406940404,1772310631750,-300.0,9.902e-05,2]
[406940405,1772310631762,-1829.88885946,9.902e-05,2]
[406940406,1772310631773,-250.0,9.902e-05,2]
[406940407,1772310631784,-336.07715041,9.902e-05,2]
[406940408,1772310631795,-459.228777,0.0001,2]
[406940409,1772310631807,-200.0,0.0001,2]
[406940410,1772310631819,-2351.0,0.00010892,2]
[406940411,1772310631830,-331.28611682,0.00010934,2]
[406940412,1772310631841,-393.128032,0.00011383,2]
[406940413,1772310631852,-222.0,0.00011873,2]
[406940414,1772310631864,-455.0,0.00011973,2]
[406940415,1772310631876,-151.0,0.00012063,2]
[406940416,1772310631887,-151.0,0.00012063,2]
[406940417,1772310631899,-151.0,0.00012063,2]
[406940418,1772310631911,-151.0,0.00012063,2]
[406940419,1772310631920,-151.0,0.00012063,2]
[406940420,1772310631930,-151.0,0.00012063,2]
[406940421,1772310631939,-151.0,0.00012063,2]
[406940422,1772310631950,-151.0,0.00012063,2]
[406940423,1772310631959,-151.0,0.00012063,2]
[406940424,1772310632118,-151.0,0.00012063,2]
[406940425,1772310632181,-151.0,0.00012063,2]
[406940426,1772310632196,-151.0,0.00012063,2]
[406940427,1772310632206,-150.0,0.00012069,2]
[406940428,1772310632216,-500.0,0.0001207,2]
[406940429,1772310632228,-500.0,0.0001207,2]
[406940430,1772310632241,-500.0,0.0001207,2]
[406940431,1772310632251,-500.97875071,0.0001207,2]
[406940432,1772310632260,-500.0,0.0001207,2]
[406940433,1772310632270,-500.0,0.0001207,2]
[406940434,1772310632279,-500.0,0.0001207,2]
[406940435,1772310632289,-500.0,0.0001207,2]
[406940436,1772310632299,-500.0,0.0001207,2]
[406940437,1772310632309,-500.0,0.0001207,2]
[406940438,1772310632318,-500.0,0.0001207,2]
[406940439,1772310632328,-500.0,0.0001207,2]
[406940440,1772310632337,-520.40050299,0.0001207,2]
[406940441,1772310632347,-456.48,0.0001207,2]
[406940442,1772310632356,-489.49024923,0.0001207,2]
[406940443,1772310632365,-702.0,0.00012159,2]
[406940444,1772310632375,-250.0,0.00012173,2]
[406940445,1772310632384,-456.48,0.00012344,2]
[406940446,1772310632393,-1600.0,0.00012373,2]
[406940447,1772310632403,-1125.93,0.00012466,2]
[406940448,1772310632412,-1000.0,0.00012482,2]
[406940449,1772310632422,-212.84,0.00012556,2]
[406940450,1772310632432,-456.48,0.00012618,2]
[406940451,1772310632441,-501.0,0.00012658,2]
[406940452,1772310632450,-3828.56,0.00012674,2]
[406940453,1772310632459,-456.48,0.00012892,2]
[406940454,1772310632469,-456.52,0.00013166,2]
[406940455,1772310632479,-2983.92,0.00013235,2]
[406940456,1772310632489,-939.87387951,0.00013285,2]
[406940457,1772310632499,-500.0,0.00013311,2]
[406940458,1772310632509,-3240.0,0.00013425,2]
[406940459,1772310632518,-253.0,0.0001346,2]
[406940460,1772310632529,-3165.53626139,0.00013482,2]
[406940461,1772310632541,-48379.33,0.00013492,2]
[406940462,1772310632551,-166.66,0.00013535,2]
[406940463,1772310632560,-2983.92,0.00013566,2]
[406940464,1772310632571,-491.41004,0.00013659,2]
[406940465,1772310632580,-200.0,0.00013699,2]
[406940466,1772310632589,-4753.14,0.00013699,2]
[406940467,1772310632599,-299.99,0.00013699,2]
[406940468,1772310632611,-150.99,0.00013699,2]
[406940469,1772310632619,-999.99,0.00013699,2]
[406940470,1772310632629,-166.66,0.0001382,2]
[406940471,1772310632639,-2983.92,0.00013897,2]
[406940472,1772310632648,-1600.0,0.00013919,2]
[406940473,1772310632658,-1000.0,0.00014042,2]
[406940474,1772310632667,-166.66,0.00014076,2]
[406940475,1772310632676,-166.66,0.00014105,2]
[406940476,1772310632685,-527.0,0.0001411,2]
[406940477,1772310632695,-2983.92,0.00014228,2]
[406940478,1772310632705,-166.66,0.0001439,2]
[406940479,1772310632714,-166.66,0.0001454,2]
[406940480,1772310632723,-2983.92,0.00014559,2]
[406940481,1772310632734,-1717.3267,0.00014638,2]
[406940482,1772310632743,-166.66,0.00014675,2]
[406940483,1772310632752,-2500.0,0.00014678,2]
[406940484,1772310632762,-9763.32776711,0.00014738,2]
[406940485,1772310632775,-27112.43863206,0.00014738,2]
[406940486,1772310632786,-9769.85015278,0.00014738,2]
[406940487,1772310632795,-31034.8864,0.00014778,2]
[406940488,1772310632804,-288.6436,0.00014778,2]
[406940489,1772310632814,-5000.0,0.00014778,2]
[406940490,1772310632823,-166.90991613,0.00014779,2]
[406940491,1772310632832,-3075.18260847,0.00014779,2]
[406940492,1772310632842,-248.2341803,0.00014779,2]
[406940493,1772310632851,-494.6361199,0.00014779,2]
[406940494,1772310632861,-1850.91478876,0.00014779,2]
[406940495,1772310632870,-2943.61474018,0.00014779,2]
[406940496,1772310632880,-179.10040374,0.00014868,2]
[406940497,1772310632889,-500.0,0.00014877,2]
[406940498,1772310632898,-500.0,0.00014877,2]
[406940499,1772310632908,-373.89946168,0.00014877,2]
[406940500,1772310632917,-500.0,0.00014877,2]
[406940501,1772310632926,-600.91073958,0.00014877,2]
[406940502,1772310632936,-500.0,0.00014877,2]
[406940503,1772310632949,-500.0,0.00014877,2]
[406940504,1772310632958,-500.0,0.00014877,2]
[406940505,1772310632968,-500.0,0.00014877,2]
[406940506,1772310632978,-500.0,0.00014877,2]
[406940507,1772310632987,-500.0,0.00014877,2]
[406940508,1772310632997,-255.43375404,0.00014877,2]
[406940509,1772310633006,-500.0,0.00014877,2]
[406940510,1772310633016,-500.0,0.00014877,2]
[406940511,1772310633025,-500.0,0.00014877,2]
[406940512,1772310633034,-500.0,0.00014877,2]
[406940513,1772310633044,-409.05008186,0.00014877,2]
[406940514,1772310633054,-500.0,0.00014877,2]
[406940515,1772310633063,-222.11925389,0.00014877,2]
[406940516,1772310633073,-31715.22534821,0.00014878,2]
[406940517,1772310633100,-338.61,0.00014878,2]
[406940518,1772310633111,-62814.08908881,0.00014878,2]
[406940520,1772310637697,-500.0,0.0001207,2]
[406940521,1772310637707,-3630.39922894,0.00014878,2]
[406940522,1772310637771,-29568.69613856,0.00014878,2]
[406940523,1772310637783,-1906.50200278,0.00014878,2]
[406940524,1772310637794,-2729.99725193,0.00014878,2]
[406940538,1772310639850,-891440.33076593,0.00014878,2]
[406940539,1772310639908,-815.55983567,0.00014878,2]
[406940540,1772310639919,-2365.275,0.00014878,2]
[406940541,1772310639930,-2511.0,0.00014878,2]
[406940542,1772310639942,-3295.39,0.00014878,2]
[406940543,1772310640129,-335.11878064,0.00014878,2]
[406940544,1772310640187,-529.76270207,0.00014878,2]
[406940545,1772310640198,-1372.022596,0.00014878,2]
[406940546,1772310640354,-641.22517334,0.00014878,2]
[406940562,1772310642774,-12515.7255228,0.00014878,2]
[406940563,1772310642832,-974.1520157,0.00014878,2]
[406940564,1772310642926,-8.13294531,0.00014878,2]
[406940618,1772310645500,-1790.92483732,0.00014878,2]
[406940619,1772310645558,-3349.3,0.00014878,2]
[406940620,1772310645617,-7617.00881527,0.00014878,2]
[406940621,1772310645628,-12528.94150873,0.00014878,2]
[406940675,1772310939083,-222.8955016,0.00012069,2]
[406940697,1772311831642,-172.36,0.00010467,2]
[406940698,1772311831651,-300.0,0.00010793,2]
[406940699,1772311831661,-271.50227644,0.00011118,2]
[406940700,1772311831670,-169.06393746,0.00011218,2]
[406940701,1772311831680,-300.0,0.00011277,2]
[406940702,1772311831689,-300.0,0.00011277,2]
[406940703,1772311831699,-500.0,0.00011514,2]
[406940704,1772311831708,-300.0,0.00011514,2]
[406940705,1772311831721,-500.0,0.00011514,2]
[406940706,1772311831730,-300.0,0.00012069,2]
[406940707,1772311831740,-1200.0,0.00012069,2]
[406940708,1772311831749,-857.36758301,0.0001207,2]
[406940709,1772311831759,-500.0,0.0001207,2]
[406940710,1772311831769,-500.0,0.0001207,2]
[406940711,1772311831778,-500.0,0.0001207,2]
[406940712,1772311831788,-264.563332,0.00012636,2]
[406940713,1772311831799,-409.26496398,0.000127,2]
[406940714,1772311831810,-423.21736339,0.000127,2]
[406940715,1772311831822,-267.0,0.00012833,2]
[406940716,1772311831832,-2719.77,0.00012839,2]
[406940717,1772311831842,-1179.0,0.00012872,2]
[406940718,1772311831852,-150.0,0.00012892,2]
[406940719,1772311832070,-299.99,0.00012893,2]
[406940720,1772311832097,-311.82,0.00012893,2]
[406940721,1772311832108,-9294.57483904,0.00012893,2]
[406940722,1772311832215,-570.12167865,0.00012893,2]
[406940723,1772311832227,-135.29348231,0.00012893,2]
[406940724,1772311832238,-553.86787973,0.00012893,2]
[406940725,1772311832249,-6589.69212027,0.00012893,2]
[406940726,1772311832259,-5802.13652122,0.00012893,2]
[406940727,1772311832271,-3694.18347878,0.00012893,2]
[406940728,1772311832280,-9999.99,0.00012893,2]
[406940729,1772311832290,-2415.11,0.00012929,2]
[406940731,1772311832300,-350.097704,0.00012948,2]
[406940733,1772311832309,-500.0,0.00012962,2]
[406940735,1772311832320,-445.53490982,0.00013072,2]
[406940737,1772311832330,-231.86,0.0001311,2]